Workbook

Sheet EingabeMaske
E1: WE-Rechner, Version 4 - LGMB 2023, Stand 11.2024 | F1: Bitte beachten Sie den jeweiligen Kommentar der Zellen der fünften Spalte (Spalte E). Sofern nicht alle Kommentare gleichzeitig eingeblendet sind, halten Sie die Maus-Positions-Marke (Cursor) über eine Zelle, in deren rechter oberer Ecke ein rotes Dreieck angezeigt wird.
A2: Vergleichswertberechnung "Wohnungseigentum"
A3: gem. § 182 Abs.2 BewG i. V. m. § 183 BewG.
A7: Eingabefelder blau | B7: Berechnungsfelder rot | D7: Kommentar
A9: Bezeichnung des Wertermittlungsobjekts der Bewertung nach § 183 BewG | B9: 53449 Bad Neuenahr, Musterstraße 2
A10: Liste der Vergleichsfaktoren | D10: Bobenheim-Roxheim - Roxheim
A11: Gemeinde / Gemarkung / Landkreis bzw. Stadt: | B11: / /
D13: =(YEAR(D15)+1) -> 2024
A14: Merkmale des Wertermittlungsobjekts | C14: Eingabeschranken
A15: Wertermittlungsstichtag (WST): | C15: 01.01.2010 bis heute | D15: 2023-07-04
A16: Index nach Marktsegment zum Wertermittlungsstichtag (2010 =100): | D16: ='Indizes 2024 Schätzung 2025'!X18 -> 
A19: Grundstücksgröße (GG): | C19: 30 m² bis 500.000 m² | D19: 1000
A20: Gebäudestandardstufe (GST): | C20: siehe Berechnungshilfe Blatt "GebStandard", 1 bis 5 | D20: =GebStandard!I25 -> 3
A21: Wohnungsgröße [Wohnfläche (WF)]: | C21: 15 bis 250 m² | D21: 100
A22: Anzahl der Wohneinheiten in der Wohnanlage | C22: 3 bis 500 | D22: 10
A23: Miteigentumsanteil (MA) | C23: Zähler | D23: 1
C24: Nenner | D24: 6
C25: in Prozent | D25: =IF(D23>=D24,"Fehler",ROUND(D23/D24,6)) -> 0.166667
A26: Baujahr (BJ): | D26: 1960
A27: Gesamtnutzungsdauer (GND): | C27: aus Standardstufe berechnet | D27: 80
A28: Restnutzungsdauer (RND): | C28: = GND ./. (ggf. fiktives) Alter; Mindest-RND = 30% der GND | D28: =ROUND(IF(D27-(YEAR(D15)-D26)>= D27*30%,IF(D27-(YEAR(D15)-D26)>RND!F31,D27-(YEAR(D15)-D26),RND!F31),IF(RND!F31>D27*30%,RND!F31,D27*30%)),1) -> 24
C29: relativ (RND/GND) in Prozent | D29: =IF(D28>D27,"Fehler GND>RND",ROUND(ROUND($D28,0)/ROUND(D$27,0),4)) -> 0.3
A30: Bodenrichtwert (BRW), maßgeblich ist der BRW zum 01.01.2022 gemäß Liegenschaftskarte/Geodatenserver RP | D30: 300 | F30: =IF(D30>1500,"Plausibel? Wurde nicht irrtümlich ein Geschäftslagenwert statt des Wohnlagewertes eingegeben?","") -> 
A32: Sondereigentume, Sondernutzungsrechte (freie Eingaben)
A33: Garage | C33: 3 | D33: 7000
A36: Beschreibung des Richtwertobjekts (RWO)
A37: Bezeichnung des herangezogenen Richtwertes
A38: (Gemeinde/Gemeindeteil/ggf. Kreismittel) | D38: =B11 -> / /
A39: Bodenwertniveau (BWN): | D39: =VLOOKUP(EingabeMaske!B$11,'Vergleichsfaktoren 2023 (2)'!A8:I3024,7) -> 0
A40: Vergleichsfaktor [Richtwert (RW)]: aus den Kaufpreissammlungen der Gutachterausschüsse abgeleiteter Wert einer Wohnung, die nach den wertbestimmenden Merkmalen mit der zu bewertenden Wohnung annährend vergleichbar ist Die wertbestimmenden Abweichungen werden in mehreren Rechenschritten entsprechend angepasst. | D40: =ROUND(VLOOKUP(EingabeMaske!B$11,'Vergleichsfaktoren 2023 (2)'!A8:I3024,8),0) -> 0
A41: Stichtag des Richtwertes: | D41: 2022-01-01
A42: Index nach Marktsegment 01.01.2022 (2010 = 100): | D42: ='Indizes 2024 Schätzung 2025'!Z18 -> 
A43: Marktsegment | D43: =VLOOKUP(EingabeMaske!B$11,'Vergleichsfaktoren 2023 (2)'!A8:I3024,6) -> 0
A44: Sachwertfaktor des Richtwertgrundstücks | D44: =VLOOKUP(EingabeMaske!B$11,'Vergleichsfaktoren 2023 (2)'!A8:I3024,9) -> 0
A45: Gebäudestandardstufe (GST): | D45: 3
A46: Gesamtnutzungsdauer (GND): | B46: 80 | D46: 1
A47: Restnutzungsdauer (RND): | B47: 53 | C47: relative RND: | D47: =ROUND(B47/B46,4) -> 0.6625
A48: Wohnungsgröße (WF): | D48: 80
A49: Anzahl der Wohneinheiten (WE) in der Wohnanlage: | D49: 10
A50: Grundstücksgröße (GG): | D50: 1300
A51: Miteigentumsanteil (MA) in Prozent: | D51: 0.1
A52: relativer Bodenwertanteil (BWA), je m² Wohnfläche: | D52: =ROUND(D39*D50/D49/D48,2) -> 0
A57: Quelle: Oberer Gutachterausschuss für Grundstückswerte Rheinland-Pfalz gem. Landesgrundstückmarktbericht 2023

Sheet Berechnung und Ergebnis
D1: =EingabeMaske!E1 -> WE-Rechner, Version 4 - LGMB 2023, Stand 11.2024
A2: Vergleichswertberechnung "Wohnungseigentum"
A4: Bezeichnung des Wertermittlungsobjekts der Bewertung nach § 183 BewG: | B4: =EingabeMaske!B9 -> 53449 Bad Neuenahr, Musterstraße 2
A6: Merkmale des Wertermittlungsobjekts (WO)
A7: =EingabeMaske!A15 -> Wertermittlungsstichtag (WST): | D7: =EingabeMaske!D15 -> 2023-07-04
A8: =EingabeMaske!A19 -> Grundstücksgröße (GG): | D8: =ROUND(EingabeMaske!D19,0) -> 1000
A9: Miteigentumsanteil: | D9: =ROUND(EingabeMaske!D25,4) -> 0.1667
A10: Baujahr (BJ): | D10: =EingabeMaske!D26 -> 1960
A11: =EingabeMaske!A20 -> Gebäudestandardstufe (GST): | D11: =ROUND(EingabeMaske!D20,2) -> 3
A12: Wohnfläche (WF): | D12: =ROUND(EingabeMaske!D21,1) -> 100
A13: Anzahl der Wohneinheiten in der Wohnanlage | D13: =EingabeMaske!D22 -> 10
A14: =EingabeMaske!A27 -> Gesamtnutzungsdauer (GND): | D14: =ROUND(EingabeMaske!D27,1) -> 80
A15: Restnutzungsdauer (RND): | D15: =ROUND(EingabeMaske!D28,1) -> 24
C16: relative RND: | D16: =EingabeMaske!D29 -> 0.3
A17: Bodenrichtwert (BWN), letzter Bodenrichtwert (01.01.2022): | D17: =ROUND(EingabeMaske!D30,0) -> 300
A18: Sondereigentume, Sondernutzungsrechte
A19: Sondernutzungsrechte Kfz-Unterbringung | D19: =EingabeMaske!D33 -> 7000
A20: =IF(EingabeMaske!A33<>0,EingabeMaske!A33,"") -> Garage
A21: Beschreibung des Richtwertobjekts (RWO)
A22: Bezeichnung des herangezogenen Richtwertes
A23: Gemeinde / Gemarkung / Landkreis bzw. Stadt: | B23: =EingabeMaske!D38 -> / /
A24: Bodenwertniveau (BWN): | D24: =EingabeMaske!D39 -> 0
A25: Vergleichsfaktor [Richtwert (RW)]: | D25: =EingabeMaske!D40 -> 0
A26: Stichtag des Richtwertes: | D26: =EingabeMaske!D41 -> 2022-01-01
A27: Index nach Marktsegment zum 01.01.2022 (2010 =100): | D27: =ROUND(EingabeMaske!D42,0) -> 
A28: Sachwertfaktor des Richtwertgrundstücks | D28: =EingabeMaske!D44 -> 0
A29: Gebäudestandardstufe (GST) (beeinflusst für die Nutzungsdauer): | D29: 3
A30: Gesamtnutzungsdauer (GND): | B30: 80 | D30: 1
A31: Restnutzungsdauer (RND): | B31: 53 | C31: relative RND: | D31: =EingabeMaske!D47 -> 0.6625
A32: Wohnungsgröße [Wohnfläche (WF)]: | D32: 80
A33: Anzahl der Wohneinheiten (WE) in der Wohnanlage: | D33: 10
A34: Grundstücksgröße (GG): | D34: 1300
A35: Miteigentumsanteil (MA) in Prozent: | D35: 0.1
A36: Bodenwertanteil (BWA) pro m² Wohnfläche: | D36: =ROUND(D24*D34/D33/D32,2) -> 0
A38: Die vorliegenden Vergleichsfaktoren wurden vom oberen Gutachterausschuss RLP für ein sog. Richtwertgrundstück (= Standardgrundstück) abgeleitet. Um die Vergleichsfaktoren (im Weiteren als Richtwert bezeichnet) an das konkrete Wertermittlungsobjekt anzupassen, werden hierauf seitens des OGA nachfolgende Anpassungsfaktoren und Umrechnungskoeffizienten zur Schätzung der Zu- und Abschläge angewandt (vgl. § 12 ImmoWertV). Diese wurden zum Teil vom OGA selbst abgeleitet bzw. im Einzelfall der einschlägigen Literatur entnommen und entsprechend dem Bewertungsgesetz seitens des LfSt angepasst.
A39: =EingabeMaske!A57 -> Quelle: Oberer Gutachterausschuss für Grundstückswerte Rheinland-Pfalz gem. Landesgrundstückmarktbericht 2023
D40: =EingabeMaske!E1 -> WE-Rechner, Version 4 - LGMB 2023, Stand 11.2024
A41: Berechnung
A42: 1. Berücksichtigung des Bodenwertanteils des Wertermittlungsobjekts (RW 1)
A43: Bodenwertanteil des Wertermittlungsobjekts pro m² Wf
A44: Bodenwert (BW): | D44: =D17 -> 300
A45: Grundstücksgröße (GG): | C45: x | D45: =D8 -> 1000
A46: Wohnfläche (WF): | C46: / | D46: =D12 -> 100
A47: Miteigentumsanteil: | C47: x | D47: =D9 -> 0.1667
A48: Bodenwertanteil des Wertermittlungsobjekts [€/m² Wf]: | D48: =ROUND(D44*D45/D46*D47,2) -> 500.1
A50: Ermittlung des Richtwertes mit dem Bodenwertanteil des Wertermittlungsobjekts
A51: Richtwert: | D51: =D25 -> 0
A52: Sachwertfaktor: | C52: / | D52: =D28 -> 0
D53: =D51/D52 -> 
A54: Bodenwertanteil des Wertermittlungsobjekts [€/m² Wf]: | C54: + | D54: =D48 -> 500.1
A55: Bodenwertanteil des Richtwertobjekts [€/m² Wf]: | C55: - | D55: =D36 -> 0
D56: =D53+D54-D55 -> 
A57: Ermittlung des Richtwertes (RW1) mit dem marktangepassten Bodenwertanteil des Wertermittlungsobjektes (WO)
A58: Sachwertfaktor [SWF(WO)]: | C58: x | D58: =ROUND('Vergleichsdaten LGMB 2023'!B20,2) -> 
A59: Zwischenergebnis (RW1): | D59: =ROUND(D58*D56,2) -> 
A61: 2. Anpassung an den Gebäudestandard (RW 2)
A62: Herausrechnen des Gebäudewertanteils aus (RW1)
A63: Bodenwertanteil des Wertermittlungsobjekts [€/m² Wf]: | C63: - | D63: =D54 -> 500.1
A64: Sachwertfaktor [SWF(WO)]: | C64: x | D64: =D58 -> 
A65: Bodenwertanteil am Richtwert [RW1(BW)]: | C65: - | D65: =ROUND(D63*D64,2) -> 
A66: Zwischenergebnis [RW1(Geb)]: | D66: =ROUND(D59-D48*D58,2) -> 
A67: UKGST: | C67: x | D67: =ROUND('Vergleichsdaten LGMB 2023'!B$33*D$11^2+'Vergleichsdaten LGMB 2023'!B$34*D$11+'Vergleichsdaten LGMB 2023'!B$35,3) -> 1
A68: Gebäudewertanteil, angepasst [RW2(Geb)]: | D68: =ROUND(D66*D67,2) -> 
A70: 3. Anpassung an die Restnutzungsdauer (RW 3)
A72: relative Restnutzungsdauer des Wertermittlungsobjekts | D72: ='Berechnung und Ergebnis'!D16 -> 0.3
A73: relative Restnutzungsdauer des Richtwertobjekts | C73: / | D73: =D31 -> 0.6625
C74: x | D74: =ROUND(D72/D73,3) -> 0.453
A75: Zwischenergebnis [RW3(Geb)]: | D75: =ROUND(D68*D74,2) -> 
A77: 4. Anpassung an die Wohnungsgröße (RW 4)
A79: UKWF(WO): | D79: =ROUND('Vergleichsdaten LGMB 2023'!B102*D12^2+'Vergleichsdaten LGMB 2023'!B103*D12+'Vergleichsdaten LGMB 2023'!B104,2) -> 1.01
A80: UKWF(RWO): | C80: / | D80: 1
C81: x | D81: =ROUND(D79/D80,3) -> 1.01
A82: Zwischenergebnis [RW4(Geb)]: | D82: =ROUND(D75*D81,2) -> 
A84: 5. Anpassung an die Anzahl der Wohneinheiten (RW 5)
A86: UKAWE(WO): | D86: =ROUND(IF(D13<=40,'Vergleichsdaten LGMB 2023'!B$137*D13^'Vergleichsdaten LGMB 2023'!B$138,'Vergleichsdaten LGMB 2023'!B$144*D13^4+'Vergleichsdaten LGMB 2023'!B$145*D13^3+'Vergleichsdaten LGMB 2023'!B$146*D13^2+'Vergleichsdaten LGMB 2023'!B$147*D13+'Vergleichsdaten LGMB 2023'!B$148),2) -> 1
A87: UKAWE(RWO): | C87: / | D87: 1
C88: x | D88: =ROUND(D86/D87,3) -> 1
A89: Zwischenergebnis/Übertrag [RW5(Geb)]: | D89: =ROUND(D82*D88,2) -> 
A91: =EingabeMaske!A57 -> Quelle: Oberer Gutachterausschuss für Grundstückswerte Rheinland-Pfalz gem. Landesgrundstückmarktbericht 2023
D92: =EingabeMaske!E1 -> WE-Rechner, Version 4 - LGMB 2023, Stand 11.2024
A94: Zwischenergebnis/Übertrag [RW5(Geb)]: | D94: =D89 -> 
A96: 6. Berücksichtigung der veränderten Wertverhältnisse zwischen dem Richtwert-stichtag und dem Wertermittlungsstichtag (RW 6)
A97: Hinzurechnen des Bodenwertanteils
A98: Bodenwertanteil [RW1(BW)], vgl. die vorstehende Anpassung Gebäudestandard: | C98: + | D98: =D65 -> 
A99: Zwischenergebnis (RW6): | D99: =ROUND(D89+D98,2) -> 
A101: UKWst(WO): | B101: =EingabeMaske!D15 -> 2023-07-04 | D101: =EingabeMaske!D16 -> 
A102: UKWst(RWO): | B102: =EingabeMaske!D41 -> 2022-01-01 | C102: / | D102: =EingabeMaske!D42 -> 
C103: x | D103: =ROUND(D101/D102,2) -> 
A104: Zwischenergebnis (RW6): | D104: =ROUND(D99*D103,2) -> 
A106: 7. Vorläufiger Vergleichswert, sonstige Unterschiede zwischen Richtwert und Bewertungsobjekt
A107: Wohnungsgröße | C107: x | D107: =D12 -> 100
A108: vorläufige Vergleichswert | D108: =ROUND(D104*D107,2) -> 
A110: Sondereigentume, Sondernutzungsrechte
A111: Sondernutzungsrechte Kfz-Unterbringung | C111: + | D111: =D19 -> 7000
A113: Vergleichswert | D113: =ROUND(D108+D111,2) -> 
C114: gerundet | D114: =ROUND(D113,-3) -> 
A116: =EingabeMaske!A57 -> Quelle: Oberer Gutachterausschuss für Grundstückswerte Rheinland-Pfalz gem. Landesgrundstückmarktbericht 2023

Sheet Vergleichsfaktoren 2023 (2) (hidden)
B1: Vergleichsfaktoren (VF) für Wohnungseigentume im Weiterverkauf
D2: Stichtag | E2: 2022-01-01
B3: Modell s. LGMB 2022, Kap. 4.4.1.2 - © Oberer Gutachterausschuss für Grundstückswerte Rheinland-Pfalz
B4: Kurzbeschreibung des Richtwertobjekts: 10 Einheiten im Objekt, Grundstücksgröße 1.300 m², mittlerer Standard, Wohnfäche 80 m², Alter 27 Jahre
B5: Hinweis: Sollte eine Gemarkung nicht nachgewiesen sein, kann eine vergleichbare Gemarkung desselben Marktsegments herangezogen werden.
A6: Ergänzung LfSt
A7: Gemeinde / Gemarkung / Landkreis bzw. Stadt | B7: Nr. | C7: Gemarkung | D7: Gemeinde | E7: Landkreis/kreisfreie Stadt | F7: Markt-segment Nr. | G7: BWN €/m² Grdst.fl. | H7: VF €/m² Wohnfl. | I7: SWF
A8: =TRIM(D8)&" / "&TRIM(C8)&" / "&TRIM(E8) -> / /
A9: =TRIM(D9)&" / "&TRIM(C9)&" / "&TRIM(E9) -> / /
A10: / /
A11: / /
A12: / /
A13: / /
A14: / /
A15: / /
A16: / /
A17: / /
A18: / /
A19: / /
A20: / /
A21: / /
A22: / /
A23: / /
A24: / /
A25: / /
A26: / /
A27: / /
A28: / /
A29: / /
A30: / /
A31: / /
A32: / /
A33: / /
A34: / /
A35: / /
A36: / /
A37: / /
A38: / /
A39: / /
A40: / /
A41: / /
A42: / /
A43: / /
A44: / /
A45: / /
A46: / /
A47: / /
A48: / /
A49: / /
A50: / /
A51: / /
A52: / /
A53: / /
A54: / /
A55: / /
A56: / /
A57: / /
A58: / /
A59: / /
A60: / /
A61: / /
A62: / /
A63: / /
A64: / /
A65: / /
A66: / /
A67: / /
A68: / /
A69: / /
A70: / /
A71: / /
A72: / /
A73: =TRIM(D73)&" / "&TRIM(C73)&" / "&TRIM(E73) -> / /
A74: / /
A75: / /
A76: / /
A77: / /
A78: / /
A79: / /
A80: / /
A81: / /
A82: / /
A83: / /
A84: / /
A85: / /
A86: / /
A87: / /
A88: / /
A89: / /
A90: / /
A91: / /
A92: / /
A93: / /
A94: / /
A95: / /
A96: / /
A97: / /
A98: / /
A99: / /
A100: / /
A101: / /
A102: / /
A103: / /
A104: / /
A105: / /
A106: / /
A107: / /
A108: / /
A109: / /
A110: / /
A111: / /
A112: / /
A113: / /
A114: / /
A115: / /
A116: / /
A117: / /
A118: / /
A119: / /
A120: / /
A121: / /
A122: / /
A123: / /
A124: / /
A125: / /
A126: / /
A127: / /
A128: / /
A129: / /
A130: / /
A131: / /
A132: / /
A133: / /
A134: / /
A135: / /
A136: / /
A137: =TRIM(D137)&" / "&TRIM(C137)&" / "&TRIM(E137) -> / /
A138: / /
A139: / /
A140: / /
A141: / /
A142: / /
A143: / /
A144: / /
A145: / /
A146: / /
A147: / /
A148: / /
A149: / /
A150: / /
A151: / /
A152: / /
A153: / /
A154: / /
A155: / /
A156: / /
A157: / /
A158: / /
A159: / /
A160: / /
A161: / /
A162: / /
A163: / /
A164: / /
A165: / /
A166: / /
A167: / /
A168: / /
A169: / /
A170: / /
A171: / /
A172: / /
A173: / /
A174: / /
A175: / /
A176: / /
A177: / /
A178: / /
A179: / /
A180: / /
A181: / /
A182: / /
A183: / /
A184: / /
A185: / /
A186: / /
A187: / /
A188: / /
A189: / /
A190: / /
A191: / /
A192: / /
A193: / /
A194: / /
A195: / /
A196: / /
A197: / /
A198: / /
A199: / /
A200: / /
... 2824 more rows

Sheet Vergleichsdaten LGMB 2023 (hidden)
A2: =EingabeMaske!A57 -> Quelle: Oberer Gutachterausschuss für Grundstückswerte Rheinland-Pfalz gem. Landesgrundstückmarktbericht 2023
A4: Sachwertfaktoren für Wohnungseigentume | H4: =EingabeMaske!E1 -> WE-Rechner, Version 4 - LGMB 2023, Stand 11.2024
A6: Objektart | B6: Wohnungseigentum
A7: Bodenwertniveau | B7: =EingabeMaske!D30 -> 300 | C7: 45 | D7: 75 | E7: 130 | F7: 230 | G7: 230 | H7: 430
A8: vorläufiger Sachwert | B8: ='Berechnung und Ergebnis'!D12*'Berechnung und Ergebnis'!D56 ->  | C8: 150000 | D8: 150000 | E8: 150000 | F8: 150000 | G8: 150000 | H8: 150000
A9: Stichtag | B9: 2022-01-01 | C9: 2020-01-01 | D9: 2020-01-01 | E9: 2020-01-01 | F9: 2020-01-01 | G9: 2020-01-01 | H9: 2020-01-01
A10: Stichtag als Zahl | B10: =B9 -> 44562 | C10: =C9 -> 43831 | D10: =D9 -> 43831 | E10: 43831 | F10: 43831 | G10: 43831 | H10: 43831
A12: Marktsegment | B12: =VLOOKUP(EingabeMaske!B$11,'Vergleichsfaktoren 2023 (2)'!A8:I3024,6) -> 0 | C12: 1 | D12: 2 | E12: 3 | F12: 4 | G12: 5 | H12: 6
A13: a | B13: =IF(B$12=C$12,C13,IF(B$12=D$12,D13,IF(B$12=E$12,E13,IF(B$12=F$12,F13,IF(B$12=G$12,G13,IF(B$12=H$12,H13)))))) -> FALSE | C13: 0.051745 | D13: 0.001127 | E13: 0.003148 | F13: 0.002868 | G13: 0.018815 | H13: 0.02341
A14: b | B14: =IF(B$12=C$12,C14,IF(B$12=D$12,D14,IF(B$12=E$12,E14,IF(B$12=F$12,F14,IF(B$12=G$12,G14,IF(B$12=H$12,H14)))))) -> FALSE | C14: 0.328144 | D14: 0.245017 | E14: 0 | F14: 0
A15: c | B15: FALSE | C15: -0.14093 | D15: -0.122651 | E15: -0.054819 | F15: -0.064603 | G15: -0.114165 | H15: -0.222828
A16: d | B16: FALSE | C16: =7.02613*10^-5 -> 7.02613e-05 | D16: =1.62422*10^-4 -> 0.000162422 | E16: =1.50877*10^-4 -> 0.000150877 | F16: =1.58545*10^-4 -> 0.000158545 | G16: =1.30094*10^-4 -> 0.000130094 | H16: =1.5964*10^-4 -> 0.00015964
A17: e | B17: FALSE | C17: 2.718281828 | D17: 2.718281828 | E17: 2.718281828 | F17: 2.718281828 | G17: 2.718281828 | H17: 2.718281828
A19: Sachwertfaktor | B19: =B13*B7^B14*B8^B15*B17^(B16*B10) ->  | C19: =C13*C7^C14*C8^C15*C17^(C16*C10) -> 0.731740192 | D19: =D13*D7^D14*D8^D15*D17^(D16*D10) -> 0.9295804728 | E19: 1.219874013 | F19: 1.384143798 | G19: 1.445400144 | H19: 1.798292687
A20: gerundet auf 2 Stellen | B20: =ROUND(B19,2) ->  | C20: =ROUND(C19,2) -> 0.73 | D20: =ROUND(D19,2) -> 0.93 | E20: 1.22 | F20: 1.38 | G20: 1.45 | H20: 1.8
A23: SWF=a*BW^b*vSW^c
A24: a= | B24: 1.1639
A25: b= | B25: 0.2776
A26: c= | B26: -0.1193
A30: Umrechnungskoeffizienten Gebäudestandard (UKGS)
C32: GST | D32: UK
A33: a= | B33: 0.0303 | C33: 1 | D33: =B$33*C33^2+B$34*C33+B$35 -> 0.80041
A34: b= | B34: -0.0214 | C34: 1.5 | D34: 0.827585
A35: c= | B35: 0.79151 | C35: 2 | D35: 0.86991
C36: 2.5 | D36: 0.927385
C37: 3 | D37: 1.00001
C38: 3.5 | D38: 1.087785
C39: 4 | D39: 1.19071
B40: 2.5 | C40: 4.5 | D40: 1.308785
C41: 5 | D41: 1.44201
A59: Umrechnungskoeffizienten rel. Restnutzungsdauer
C61: rel. RND [%] | D61: UK
A62: a= | B62: 0.01629 | C62: 0 | D62: 0
A63: b= | B63: 0 | C63: 10 | D63: 0.1629
C64: 20 | D64: =D63*2 -> 0.3258
C65: 30 | D65: =D63*3 -> 0.4887
C66: 40 | D66: =D63*4 -> 0.6516
C67: 50 | D67: =D63*5 -> 0.8145
C68: 60 | D68: =D63*6 -> 0.9774
C69: 70 | D69: =D63*7 -> 1.1403
C70: 80 | D70: =D63*8 -> 1.3032
C71: 90 | D71: =D63*9 -> 1.4661
C72: 100 | D72: =D63*10 -> 1.629
A98: Umrechnungskoeffizienten Wohnungsgröße
C99: WF [m²] | D99: UK
A100: UKWF = a*ln(WF) + b | C100: 20 | D100: =B$102*C100^2+B$103*C100+B$104 -> 0.904676
C101: 40 | D101: =B$102*C101^2+B$103*C101+B$104 -> 0.947318
A102: a= | B102: -1.358e-05 | C102: 60 | D102: 0.979096
A103: b= | B103: 0.0029469 | C103: 80 | D103: 1.00001
A104: c= | B104: 0.85117 | C104: 100 | D104: 1.01006
C105: 120 | D105: 1.009246
C106: 140 | D106: 0.997568
C107: 160 | D107: 0.975026
C108: 180 | D108: 0.94162
C109: 200 | D109: 0.89735
A134: Umrechnungskoeffizienten Anzahl der WE in der Anlage
C136: Anzahl WE | D136: UK
A137: a | B137: 1.083059 | C137: 3 | D137: =IF(C137<=40,B$137*C137^B$138,B$144*C137^4+B$145*C137^3+B$146*C137^2+B$147*C137+B$148) -> 1.042618891
A138: b | B138: -0.034638 | C138: 6 | D138: 1.017884527
C139: 10 | D139: 1.000032503
C140: 15 | D140: 0.9860857131
C141: 20 | D141: 0.9763084285
C142: 30 | D142: 0.9626925026
C143: 40 | D143: 0.9531471676
A144: a | B144: 4.83179e-12 | C144: 41 | D144: 0.9496256629
A145: b | B145: -6.29777e-09 | C145: 50 | D145: 0.9465929774
A146: c | B146: 2.918e-06 | C146: 60 | D146: 0.9436111017
A147: d | B147: -0.0005651 | C147: 75 | D147: 0.9398372591
A148: e | B148: 0.96831 | C148: 90 | D148: 0.9368127394
C149: 100 | D149: 0.935165409
C150: 120 | D150: 0.9326365734
C151: 140 | D151: 0.9309638996
C152: 160 | D152: 0.929965696
C153: 180 | D153: 0.9294788252
C154: 200 | D154: 0.929358704
C155: 220 | D155: 0.929479303
C156: 250 | D156: 0.9298815234
C157: 300 | D157: 0.930497709
C158: 400 | D158: 0.929786544
C159: 500 | D159: 0.930025625
A187: Marktanpassung SMK
A189: kSMK=a*BW+b
C190: BW | D190: kSMK | E190: Kontrolle
A191: a= | B191: -0.0005166036 | C191: 20 | D191: 1 | E191: =C191*$B$191+$B$192 -> 0.997751484
A192: b= | B192: 1.008083556 | C192: 50 | D192: 0.98 | E192: 0.982253376
C193: 100 | D193: 0.96 | E193: 0.956423196
C194: 150 | D194: 0.93 | E194: 0.930593016
C195: 200 | D195: 0.9 | E195: 0.904762836
C196: 250 | D196: 0.88 | E196: 0.878932656
C197: 300 | D197: 0.85 | E197: 0.853102476
C198: 350 | D198: 0.83 | E198: 0.827272296
C199: 400 | D199: 0.8 | E199: 0.801442116
C200: 450 | D200: 0.78 | E200: 0.775611936
C201: 500 | D201: 0.75 | E201: 0.749781756
B202: 0 | C202: 550 | D202: 0.72 | E202: 0.723951576
C203: 600 | D203: 0.7 | E203: 0.698121396
A225: Anpassung an die Mietsituation | E225: UK
B226: unvermietet | C226: Kennziffer | D226: 1 | E226: 1
B227: vermietet | C227: Kennziffer | D227: 2 | E227: 0.93

Sheet GebStandard
B1: Gebäudestandards und Wägungsanteile für Mehrfamilienhäuser und Wohnhäuser mit Mischnutzung; Stufen 3 - 5 gemäß Anlage 4 ImmoWertV, Stufen 1 + 2 Ergänzungen durch Sprengnetter
K3: =EingabeMaske!E1 -> WE-Rechner, Version 4 - LGMB 2023, Stand 11.2024
B4: Wägungsan- teile (∑100 %) | C4: Stufe 1 | E4: Stufe 2 | G4: Stufe 3 | I4: Stufe 4 | K4: Stufe 5
B5: Außenwände | C5: Holzfachwerk, Ziegelmauerwerk; Fugenglattstrich, Putz, Verkleidung mit Faserzementplatten, Bitumenschindeln oder einfachen Kunststoffplatten; kein oder deutlich nicht zeitgemäßer Wärmeschutz (vor ca. 1980) | E5: ein-/zweischaliges Mauerwerk, z. B. Gitterziegel oder Hohlblocksteine; verputzt und gestrichen oder Holzverkleidung; nicht zeitgemäßer Wärmeschutz (vor ca. 1995) | G5: ein-/zweischaliges Mauerwerk, z. B. aus Leichtziegeln, Kalksandsteinen, Gasbetonsteinen; Edelputz; Wärmedämmverbundsystem oder Wärmedämmputz (nach ca. 1995) | I5: Verblendmauerwerk, zweischalig, hinterlüftet, Vorhangfassade (z. B. Naturschiefer); Wärmedämmung (nach ca. 2005) | K5: aufwendig gestaltete Fassaden mit konstruktiver Gliederung (Säulenstell-ungen, Erker etc.), Sichtbeton-Fertig-teile, Natursteinfassade, Elemente aus Kupfer-/Eloxalblech, mehrgeschoss. Glasfassaden; hochwertigste Dämmung | N5: =IF(N6=TRUE,1,0) -> 0 | O5: =IF(O6=TRUE,1,0) -> 0 | P5: 1 | Q5: 0 | R5: 0
B6: 23% | C6: =ROUND($B6/$S6*N5,4) -> 0 | E6: =ROUND($B6/$S6*O5,4) -> 0 | G6: =ROUND($B6/$S6*P5,4) -> 0.23 | I6: =ROUND($B6/$S6*Q5,4) -> 0 | K6: =ROUND($B6/$S6*R5,4) -> 0 | N6: FALSE | O6: FALSE | P6: TRUE | Q6: FALSE | R6: FALSE | S6: =COUNTIF(N6:R6,TRUE) -> 1
B7: Dach | C7: Dachpappe, Faserzementplatten/ Wellplatten; keine bis geringe Dachdämmung | E7: einfache Betondachsteine oder Tondachziegel, Bitumenschindeln; nicht zeitgemäße Dachdämmung (vor ca. 1995) | G7: Faserzement-Schindeln, beschichtete Betondachsteine und Tondachziegel, Folienabdichtung; Dachdämmung (nach ca. 1995) | I7: glasierte Tondachziegel, Flachdach- ausbildung tlw. als Dachterrassen; Konstruktion in Brettschichtholz, schweres Massivflachdach; besondere Dachformen, z. B. Mansarden-, Walmdach; Aufsparrendämmung, überdurchschn. Dämmung (nach ca. 2005) | K7: hochwertige Eindeckung z. B. aus Schiefer oder Kupfer, Dachbegrünung, befahrbares Flachdach; stark überdurchschnittliche Dämmung | N7: =IF(N8=TRUE,1,0) -> 0 | O7: =IF(O8=TRUE,1,0) -> 0 | P7: =IF(P8=TRUE,1,0) -> 1 | Q7: =IF(Q8=TRUE,1,0) -> 0 | R7: =IF(R8=TRUE,1,0) -> 0
B8: 15% | C8: =ROUND($B8/$S8*N7,4) -> 0 | E8: =ROUND($B8/$S8*O7,4) -> 0 | G8: =ROUND($B8/$S8*P7,4) -> 0.15 | I8: =ROUND($B8/$S8*Q7,4) -> 0 | K8: =ROUND($B8/$S8*R7,4) -> 0 | N8: FALSE | O8: FALSE | P8: TRUE | Q8: FALSE | R8: FALSE | S8: =COUNTIF(N8:R8,TRUE) -> 1
B9: Fenster und Außentüren | C9: Einfachverglasung; einfache Holztüren | E9: Zweifachverglasung (vor ca. 1995); Haustür mit nicht zeitgemäßem Wärmeschutz (vor ca. 1995) | G9: Zweifachverglasung (nach ca. 1995), Rollläden (manuell); Haustür mit zeitgemäßem Wärmeschutz (nach ca. 1995) | I9: Dreifachverglasung, Sonnenschutz- glas, aufwendigere Rahmen, Rollläden (elektr.); höherwertige Türanlagen z. B. mit Seitenteil, besonderer Einbruchschutz | K9: große feststehende Fensterflächen, Spezialverglasung (Schall- und Sonnenschutz); Außentüren in hochwertigen Materialien | N9: =IF(N10=TRUE,1,0) -> 0 | O9: =IF(O10=TRUE,1,0) -> 0 | P9: =IF(P10=TRUE,1,0) -> 1 | Q9: =IF(Q10=TRUE,1,0) -> 0 | R9: =IF(R10=TRUE,1,0) -> 0
B10: 11% | C10: =ROUND($B10/$S10*N9,4) -> 0 | E10: =ROUND($B10/$S10*O9,4) -> 0 | G10: =ROUND($B10/$S10*P9,4) -> 0.11 | I10: =ROUND($B10/$S10*Q9,4) -> 0 | K10: =ROUND($B10/$S10*R9,4) -> 0 | N10: FALSE | O10: FALSE | P10: TRUE | Q10: FALSE | R10: FALSE | S10: =COUNTIF(N10:R10,TRUE) -> 1
B11: Innenwände und -türen | C11: Fachwerkwände, einfache Putze/Lehmputze, einfache Kalkanstriche; Füllungstüren, gestrichen, mit einfachen Beschlägen ohne Dichtungen | E11: massive tragende Innenwände, nicht tragende Wände in Leichtbauweise (z. B. Holzständerwände mit Gipskarton), Gipsdielen; leichte Türen, Stahlzargen | G11: nicht tragende Innenwände in massiver Ausführung bzw. mit Dämmmaterial gefüllte Ständerkonstruktionen; schwere Türen | I11: Sichtmauerwerk; Massivholztüren, Schiebetürelemente, Glastüren, strukturierte Türblätter | K11: gestaltete Wandabläufe (z. B. Pfeilervorlagen, abgesetzte oder geschwungene Wandpartien); Brandschutzverkleidung; raumhohe aufwendige Türelemente | N11: =IF(N12=TRUE,1,0) -> 0 | O11: =IF(O12=TRUE,1,0) -> 0 | P11: =IF(P12=TRUE,1,0) -> 1 | Q11: =IF(Q12=TRUE,1,0) -> 0 | R11: =IF(R12=TRUE,1,0) -> 0
B12: 11% | C12: =ROUND($B12/$S12*N11,4) -> 0 | E12: =ROUND($B12/$S12*O11,4) -> 0 | G12: =ROUND($B12/$S12*P11,4) -> 0.11 | I12: =ROUND($B12/$S12*Q11,4) -> 0 | K12: =ROUND($B12/$S12*R11,4) -> 0 | N12: FALSE | O12: FALSE | P12: TRUE | Q12: FALSE | R12: FALSE | S12: =COUNTIF(N12:R12,TRUE) -> 1
B13: Deckenkon- struktion | C13: Holzbalkendecken ohne Füllung, Spalierputz | E13: Holzbalkendecken mit Füllung, Kappendecken | G13: Betondecken mit Tritt- und Luftschallschutz (z. B. schwimmender Estrich); einfacher Putz | I13: zusätzlich Deckenverkleidung | K13: Deckenvertäfelungen (Edelholz, Metall) | N13: =IF(N14=TRUE,1,0) -> 0 | O13: =IF(O14=TRUE,1,0) -> 0 | P13: =IF(P14=TRUE,1,0) -> 1 | Q13: =IF(Q14=TRUE,1,0) -> 0 | R13: =IF(R14=TRUE,1,0) -> 0
B14: 11% | C14: =ROUND($B14/$S14*N13,4) -> 0 | E14: =ROUND($B14/$S14*O13,4) -> 0 | G14: =ROUND($B14/$S14*P13,4) -> 0.11 | I14: =ROUND($B14/$S14*Q13,4) -> 0 | K14: =ROUND($B14/$S14*R13,4) -> 0 | N14: FALSE | O14: FALSE | P14: TRUE | Q14: FALSE | R14: FALSE | S14: =COUNTIF(N14:R14,TRUE) -> 1
B15: Fußböden | C15: ohne Belag | E15: Linoleum-, Teppich-, Laminat- und PVC-Böden einfacher Art und Ausführung | G15: Linoleum-, Teppich-, Laminat- und PVC-Böden besserer Art und Ausführung, Fliesen, Kunststeinplatten | I15: Natursteinplatten, Fertigparkett, hochwertige Fliesen, Terrazzobelag, hochwertige Massivholzböden auf aufgedämmter Unterkonstruktion | K15: hochwertiges Parkett, hochwertige Natursteinplatten, hochwertige Edelholzböden auf gedämmter Unterkonstruktion | N15: =IF(N16=TRUE,1,0) -> 0 | O15: =IF(O16=TRUE,1,0) -> 0 | P15: =IF(P16=TRUE,1,0) -> 1 | Q15: =IF(Q16=TRUE,1,0) -> 0 | R15: =IF(R16=TRUE,1,0) -> 0
B16: 5% | C16: =ROUND($B16/$S16*N15,4) -> 0 | E16: =ROUND($B16/$S16*O15,4) -> 0 | G16: =ROUND($B16/$S16*P15,4) -> 0.05 | I16: =ROUND($B16/$S16*Q15,4) -> 0 | K16: =ROUND($B16/$S16*R15,4) -> 0 | N16: FALSE | O16: FALSE | P16: TRUE | Q16: FALSE | R16: FALSE | S16: =COUNTIF(N16:R16,TRUE) -> 1
B17: Sanitärein- richtungen | C17: einfaches Bad mit Stand-WC; Installation auf Putz, Ölfarbenanstrich, einfache PVC-Bodenbeläge | E17: 1 Bad mit WC, Dusche oder Badewanne; einfache Wand- und Bodenfliesen, teilweise gefliest | G17: 1 Bad mit WC je Wohneinheit; Dusche und Badewanne; Wand- und Bodenfliesen, raumhoch gefliest | I17: 1 – 2 Bäder je Wohneinheit mit tlw. zwei Waschbecken, tlw. Bidet/ Urinal, Gäste-WC, bodengleiche Dusche; Wand- und Bodenfliesen jeweils in gehobener Qualität | K17: 2 und mehr Bäder je Wohneinheit; hochwertige Wand- und Bodenplatten (oberflächenstrukturiert, Einzel- und Flächendekors) | N17: =IF(N18=TRUE,1,0) -> 0 | O17: =IF(O18=TRUE,1,0) -> 0 | P17: =IF(P18=TRUE,1,0) -> 1 | Q17: =IF(Q18=TRUE,1,0) -> 0 | R17: =IF(R18=TRUE,1,0) -> 0
B18: 9% | C18: =ROUND($B18/$S18*N17,4) -> 0 | E18: =ROUND($B18/$S18*O17,4) -> 0 | G18: =ROUND($B18/$S18*P17,4) -> 0.09 | I18: =ROUND($B18/$S18*Q17,4) -> 0 | K18: =ROUND($B18/$S18*R17,4) -> 0 | N18: FALSE | O18: FALSE | P18: TRUE | Q18: FALSE | R18: FALSE | S18: =COUNTIF(N18:R18,TRUE) -> 1
B19: Heizung | C19: Einzelöfen, Schwerkraftheizung | E19: Fern- oder Zentralheizung, einfache Warmluftheizung, einzelne Gasaußen-wandthermen, Nachtstromspeicher-, Fußbodenheizung (vor ca. 1995) | G19: elektronisch gesteuerte Fern- oder Zentralheizung, Niedertemperatur- oder Brennwertkessel | I19: Fußbodenheizung, Solarkollektoren für Warmwassererzeugung | K19: Solarkollektoren für Warmwassererzeugung und Heizung, Blockheizkraftwerk, Wärmepumpe, Hybrid-Systeme | N19: =IF(N20=TRUE,1,0) -> 0 | O19: =IF(O20=TRUE,1,0) -> 0 | P19: =IF(P20=TRUE,1,0) -> 1 | Q19: =IF(Q20=TRUE,1,0) -> 0 | R19: =IF(R20=TRUE,1,0) -> 0
B20: 9% | C20: =ROUND($B20/$S20*N19,4) -> 0 | E20: =ROUND($B20/$S20*O19,4) -> 0 | G20: =ROUND($B20/$S20*P19,4) -> 0.09 | I20: =ROUND($B20/$S20*Q19,4) -> 0 | K20: =ROUND($B20/$S20*R19,4) -> 0 | N20: FALSE | O20: FALSE | P20: TRUE | Q20: FALSE | R20: FALSE | S20: =COUNTIF(N20:R20,TRUE) -> 1
B21: Sonstige technische Ausstattung | C21: sehr wenige Steckdosen, Schalter und Sicherungen, kein Fehlerstromschutzschalter (FI-Schalter), Leitungen teilweise auf Putz | E21: wenige Steckdosen, Schalter und Sicherungen | G21: zeitgemäße Anzahl an Steckdosen und Lichtauslässen; Zählerschrank (ab ca. 1985) mit Unterverteilung und Kippsicherungen | I21: zahlreiche Steckdosen und Lichtaus- lässe, hochwertige Abdeckungen, de-zentrale Lüftung mit Wärme- tauscher, mehrere LAN- und Fernseh-anschlüsse, Personenaufzugsanlagen | K21: Video- und zentrale Alarmanlage, zentrale Lüftung mit Wärmetauscher, Klimaanlage, Bussystem; aufwendige Personenaufzugsanlagen | N21: =IF(N22=TRUE,1,0) -> 0 | O21: =IF(O22=TRUE,1,0) -> 0 | P21: =IF(P22=TRUE,1,0) -> 1 | Q21: =IF(Q22=TRUE,1,0) -> 0 | R21: =IF(R22=TRUE,1,0) -> 0
B22: 6% | C22: =ROUND($B22/$S22*N21,4) -> 0 | E22: =ROUND($B22/$S22*O21,4) -> 0 | G22: =ROUND($B22/$S22*P21,4) -> 0.06 | I22: =ROUND($B22/$S22*Q21,4) -> 0 | K22: =ROUND($B22/$S22*R21,4) -> 0 | N22: FALSE | O22: FALSE | P22: TRUE | Q22: FALSE | R22: FALSE | S22: =COUNTIF(N22:R22,TRUE) -> 1
B23: Summe | C23: =SUM(C6:C22) -> 0 | E23: =SUM(E6:E22) -> 0 | G23: =SUM(G6:G22) -> 1 | I23: =SUM(I6:I22) -> 0 | K23: =SUM(K6:K22) -> 0
B24: GND [Jahre] | C24: 80 | E24: 80 | G24: 80 | I24: 80 | K24: 80
B25: Gesamtnutzungsdauer (Jahre): | E25: =ROUND((C$24*C$23+E$24*E$23+G$24*G$23+I$24*I$23+K$24*K$23),1) -> 80 | G25: Standardstufe (gewogen): | I25: =(1*C23+2*E23+3*G23+4*I23+5*K23) -> 3

Sheet RND
A1: Modell zur Ermittlung der Restnutzungsdauer für Wohngebäude bei Modernisierungen (Anlage 2 ImmoWertV)
A3: Modernisierungselemente | F3: max. Punkte | I3: tats. Punkte | J3: Kommentar
A4: Dacherneuerung inklusive Verbesserung der Wärmedämmung | F4: 4 | K4: 60 | L4: 1
A5: Modernisierung der Fenster und Außentüren | F5: =IF(I5>3,"TILT max. 2 ",2) -> 2 | K5: 65 | L5: 2
A6: Modernisierung der Leitungssysteme (Strom, Gas, Wasser, Abwasser) | F6: =IF(I6>3,"TILT max. 2 ",2) -> 2 | K6: 70 | L6: 3
A7: Modernisierung der Heizungsanlage | F7: =IF(I7>3,"TILT max. 2 ",2) -> 2 | K7: 75 | L7: 4
A8: Wärmedämmung der Außenwände | F8: 4 | K8: 80
A9: Modernisierung von Bädern | F9: =IF(I9>3,"TILT max. 2 ",2) -> 2 | K9: 90
A10: Modernisierung des Innenausbaus, z.B. Decken, Fußböden, Treppen | F10: 2 | L10: =IF(AND(I3<>"",I12=0),"Einblenden","Ausblenden") -> Einblenden
A11: Wesentliche Verbesserung der Grundrissgestaltung | F11: 2
A12: Summe | F12: =SUM(F4:F11) -> 20 | I12: =SUM(I4:I11) -> 0 | L12: =IF(I12>0,#REF!=0) -> FALSE
A14: Liegen die Maßnahmen weiter zurück, ist zu prüfen, ob nicht ein geringerer als der maximale Tabellenwert anzusetzen ist. Sofern nicht modernisierte Bauelemente noch zeitgemäßen Ansprüchen genügen, sind entsprechende Punkte zu vergeben.
A18: Modernisierungsgrad | F18: Punkte | L18: Modernisierungsgrad | M18: a | N18: b | O18: c | P18: ab einem relativen Alter [%] von *) | R18: Formel anwendbar
A19: nicht modernisiert | F19: 0 | G19: - | H19: 1 | I19: =IF(AND(I12<>"",F19<=I12,H19>=I12,I12<1),I12,IF((F19<=I12)*OR(H19>=I12),I12,0)) -> 0 | L19: ≤ 1 Punkt | M19: 0.0125 | N19: 2.625 | O19: 152.5 | P19: 60 | Q19: 24 | R19: =IF(AND(I12<2,L28>(P19-1)),1,0) -> 1
A20: kleine Modernisierung im Rahmen der Instandhaltung | F20: 2 | G20: - | H20: 5 | I20: =IF(AND(I12<>"",F20<=I12,H20>=I12,I12<1),I12,IF(AND(J23<>"",F20<=J23,H20>=J23),J23,IF((F20<=I12)*OR(H20>=I12),I12,0))) -> 0 | L20: 4 Punkte | M20: 0.0073 | N20: 1.577 | O20: 111.33 | P20: 40 | Q20: 0 | R20: =IF(AND(I20<>0,L28>(P20-1)),1,0) -> 0
A21: mittlerer Modernisierungsgrad | F21: 6 | G21: - | H21: 10 | I21: =IF(AND(I12<>"",F21<=I12,H21>=I12,I12<1),I12,IF((F21<=I12)*OR(H21>=I12),I12,0)) -> 0 | L21: 8 Punkte | M21: 0.005 | N21: 1.1 | O21: 100 | P21: 20 | Q21: 0 | R21: =IF(AND(I21<>0,L28>(P21-1)),1,0) -> 0
A22: überwiegend modernisiert | F22: 11 | G22: - | H22: 17 | I22: =IF(AND(I12<>"",F22<=I12,H22>=I12<1),,IF((F22<=I12)*OR(H22>=I12),I12,0)) -> 0 | L22: 13 Punkte | M22: 0.0033 | N22: 0.735 | O22: 95.28 | P22: 15 | Q22: 0 | R22: =IF(AND(I22<>0,L28>(P22-1)),1,0) -> 0
A23: umfassend modernisiert | F23: 18 | G23: - | H23: 20 | I23: =IF(AND(I12<>"",F23<=I12,H23>=I12,I12<1),I12,IF((F23<=I12)*OR(H23>=I12),I12,0)) -> 0 | L23: ≥ 18 Punkte | M23: 0.002 | N23: 0.44 | O23: 94.2 | P23: 10 | Q23: 0 | R23: =IF(AND(I23<>0,L28>(P23-1)),1,0) -> 0
P24: Summe | Q24: =SUM(Q19:Q23) -> 24 | R24: =SUM(R19:R23) -> 1
A25: Ermittlung der Restnutzungsdauer und des rechnerischen Baujahres | L25: Maximales tatsächliches Gebäudealter unter Berücksichtigung der gewählten Gesamtnutzungsdauer:
A26: Vorgaben | B26: Stichtag | E26: nur das Jahr ! | F26: =YEAR(EingabeMaske!D15) -> 2023 | L26: 36
B27: Baujahr | F27: =EingabeMaske!D26 -> 1960 | L27: Berechnung des relativen Gebäudealters (Alter/GNDx100):
B28: tatsächliches Alter | F28: =F26-F27 -> 63 | I28: Jahre | L28: 60 | M28: %
B29: Bestimmung der Restnutzungsdauer nach ImmoWertV
B30: Gesamtnutzungsdauer (80 Jahre) | F30: =EingabeMaske!D27 -> 80 | I30: Jahre
B31: Restnutzungsdauer nach ImmoWertV | F31: ='RND nach ImmoWertV'!B15 -> 24 | I31: Jahre
B32: lineare Alterswertminderung | F32: =ROUND((F30-F31)/F30*100,0) -> 70 | I32: %

Sheet Indizes 2022 Schätzung 2023 (hidden)
A1: Quelle: Oberer Gutachterausschuss für Grundstückswerte Rheinland-Pfalz gem. Landesgrundstückmarkbericht 2023 | N1: =EingabeMaske!E1 -> WE-Rechner, Version 4 - LGMB 2023, Stand 11.2024
B8: Indizes jeweils zum 1.1. des Jahres, für Rechner des LfSt inkl. Schätzung 1.1.2023 | S8: Marktsegment | T8: Stichtag | V8: =DATE(T10,1,1) -> 2023-01-01 | W8: =DATE(U10,1,1) -> 2024-01-01 | X8: Stichtag Richtwert
B9: Preisindex für Wohnungseigentume (Weiterverkäufe) | P9: Schätzung | Q9: Schätzung | S9: =EingabeMaske!D43 -> 0 | T9: =EingabeMaske!D15 -> 2023-07-04 | V9: Tage | W9: Tage | X9: 2022-01-01
B10: Markt-segment | C10: 2010 | D10: 2011 | E10: 2012 | F10: 2013 | G10: 2014 | H10: 2015 | I10: 2016 | J10: 2017 | K10: 2018 | L10: 2019 | M10: 2020 | N10: 2021 | O10: 2022 | P10: 2023 | Q10: 2024 | T10: =YEAR(T9) -> 2023 | U10: =T10+1 -> 2024 | V10: =_xlfn.DAYS(T9,V8) -> 184 | W10: =_xlfn.DAYS(W8,V8) -> 365 | X10: =YEAR(X9) -> 2022
B11: 1 | C11: 100 | D11: 85.79365079 | E11: 88.86243386 | F11: 92.11640212 | G11: 98.25396825 | H11: 97.39417989 | I11: 101.9444444 | J11: 113.1613757 | K11: 118.2539683 | L11: 126.7989418 | M11: 138.4920635 | N11: 158.9417989 | O11: 176.7470899 | P11: 196.1142857 | Q11: =P11 -> 196.1142857 | S11: 1 | T11: =ROUND(HLOOKUP(T$10,$C$10:$Q$17,2),1) -> 196.1 | U11: =ROUND(HLOOKUP(U$10,$C$10:$Q$17,2),1) -> 196.1 | V11: =T11+(U11-T11)*$V$10/$W$10 -> 196.1 | X11: =HLOOKUP($X$10,$E$10:$Q$17,2) -> 176.7470899
B12: 2 | C12: 100 | D12: 99.24712135 | E12: 98.0513729 | F12: 99.24712135 | G12: 98.81532329 | H12: 102.4357839 | I12: 105.8237378 | J12: 111.6142604 | K12: 119.2648361 | L12: 127.5907883 | M12: 139.8804252 | N12: 156.0008857 | O12: 173.2218778 | P12: 190.9676705 | Q12: =P12 -> 190.9676705 | S12: 2 | T12: =ROUND(HLOOKUP(T$10,$C$10:$Q$17,3),1) -> 191 | U12: =ROUND(HLOOKUP(U$10,$C$10:$Q$17,3),1) -> 191 | V12: =T12+(U12-T12)*$V$10/$W$10 -> 191 | X12: =HLOOKUP($X$10,$E$10:$Q$17,3) -> 173.2218778
B13: 3 | C13: 100 | D13: 99.64147561 | E13: 105.7175205 | F13: 108.2083215 | G13: 112.010567 | H13: 114.9731107 | I13: 123.1248231 | J13: 131.4086235 | K13: 142.1266157 | L13: 150.6934616 | M13: 167.2704972 | N13: 189.6782715 | O13: 213.983206 | P13: 232.099632 | Q13: 232.099632 | S13: 3 | T13: =ROUND(HLOOKUP(T$10,$C$10:$Q$17,4),1) -> 232.1 | U13: =ROUND(HLOOKUP(U$10,$C$10:$Q$17,4),1) -> 232.1 | V13: 232.1 | X13: =HLOOKUP($X$10,$E$10:$Q$17,4) -> 213.983206
B14: 4 | C14: 100 | D14: 102.3512123 | E14: 105.8137399 | F14: 110.9294636 | G14: 116.1094783 | H14: 123.5855988 | I14: 131.2637766 | J14: 143.9933872 | K14: 157.2189566 | L14: 174.4489346 | M14: 193.8280676 | N14: 221.6201323 | O14: 248.9129317 | P14: 272.93277 | Q14: 272.93277 | S14: 4 | T14: =ROUND(HLOOKUP(T$10,$C$10:$Q$17,5),1) -> 272.9 | U14: =ROUND(HLOOKUP(U$10,$C$10:$Q$17,5),1) -> 272.9 | V14: =T14+(U14-T14)*$V$10/$W$10 -> 272.9 | X14: =HLOOKUP($X$10,$E$10:$Q$17,5) -> 248.9129317
B15: 5 | C15: 100 | D15: 103.4715026 | E15: 109.6447076 | F15: 115.9289415 | G15: 124.3079201 | H15: 132.0873427 | I15: 142.6868986 | J15: 153.8490007 | K15: 166.4988897 | L15: 183.5159141 | M15: 203.1088083 | N15: 225.3737972 | O15: 242.938564 | P15: 258.0754996 | Q15: 258.0754996 | S15: 5 | T15: =ROUND(HLOOKUP(T$10,$C$10:$Q$17,6),1) -> 258.1 | U15: =ROUND(HLOOKUP(U$10,$C$10:$Q$17,6),1) -> 258.1 | V15: 258.1 | X15: =HLOOKUP($X$10,$E$10:$Q$17,6) -> 242.938564
B16: 6 | C16: 100 | D16: 103.1026253 | E16: 108.3465924 | F16: 117.8334659 | G16: 126.9888624 | H16: 138.3717847 | I16: 151.6308671 | J16: 167.7340228 | K16: 182.9819676 | L16: 199.8740387 | M16: 218.4036065 | N16: 245.3725802 | O16: 269.8907452 | P16: 294 | Q16: 294 | S16: 6 | T16: =ROUND(HLOOKUP(T$10,$C$10:$Q$17,7),1) -> 294 | U16: =ROUND(HLOOKUP(U$10,$C$10:$Q$17,7),1) -> 294 | V16: 294 | X16: =HLOOKUP($X$10,$E$10:$Q$17,7) -> 269.8907452
B17: Ø RLP | C17: 100 | D17: 101.754386 | E17: 105.4704944 | F17: 110.3987241 | G17: 115.9968102 | H17: 122.3923445 | I17: 131.8181818 | J17: 143.6204147 | K17: 156.6427432 | L17: 171.9059011 | M17: 189.76874 | N17: 211.6905901 | O17: 231.1834131 | P17: 247.8086124 | Q17: 247.8086124 | S17: Ø RLP | T17: =ROUND(HLOOKUP(T$10,$C$10:$Q$17,8),1) -> 247.8 | U17: =ROUND(HLOOKUP(U$10,$C$10:$Q$17,8),1) -> 247.8 | V17: 247.8 | X17: =HLOOKUP($X$10,$E$10:$Q$17,8) -> 231.1834131
S18: =S9 -> 0 | U18: = | V18: =ROUND(VLOOKUP(S9,S11:V17,4),1) ->  | X18: =ROUND(VLOOKUP(S9,S11:X17,6),1) -> 
B19: © Oberer Gutachterausschuss für Grundstückswerte Rheinland-Pfalz, Stand März 2023
B20: vgl. LGMB 2023, Abschnitt 4.6.1 und 4.6.2
C22: Die derzeit unklar Situation am Immobilienmarkt erschwert eine Prognose zum 01.01.2023.
C23: Immer mehr Meldungen und Anzeichen sind zu erkennen, dass der Markt im Umbruch ist.
C24: Daher ist es in diesem Ausnahmenfall angebracht, von der vereinbarten Rechenformel *1)
C25: nach Dr. Gante (Sprengnetter) abzuweichen.
C26: Die Prognose wurder daher um die Hälfte des prognostizierten Wachstums,
C27: sachverständig durch Herr Christian Paulik verringert.
C28: Die Schätzung für 01.01.2023 beeinflußt durch die Glättung den Wert zum aktuellen Stichtag 01.01.2022.
C29: Die Schätzung findet des Weiteren Anwendung im EFH-/WE-Rechner.
B31: *1)
C32: Statistisches Verfahren der Glättung | K32: Stand des Verfahrens 30.7.2019
C33: A Prognose: durch Extrapolation über 5 Einzel-Preissteigerungsraten (d.h. aus 6 Jahren)
C34: Das Verfahren "Extrapolation mittels Preissteigerungsraten x letztem Wert" wurde 2019
C35: in Fulda von Dr. Gante (Fa. Sprengnetter) vorgestellt.
C36: Es ist eines von vielen in Frage kommenden Verfahren, es erscheint für
C37: Immobilienpreiszeitreihen besonders geeignet.
C38: Beispiel | F38: Preissteigerungsraten | J38: Extrapolation
C39: Klasse 1 | D39: 2015 / 2014 | E39: 2016 / 2015 | F39: 2017 / 2016 | G39: 2018 / 2017 | H39: 2019 / 2018 | I39: 2020/2019 | J39: I 2019 | K39: I 2020
D40: 1.055 | E40: 0.9952606635 | F40: 1.131746032 | G40: 1.10799439 | H40: 1.025316456 | I40: 1,059 *) | J40: x 168,8 | K40: = 178,7 **)
C41: *) Prognose der Preissteigerungsrate
C42: = (letzte + Mittelwert letzte 3 Jahre + Mittelwert letzte 5 Jahre) / 3
C43: = | D43: (1,025 +(1,025+1,108+1,132)/3 +( 1,025+1,108+1,132+0,995+1,055)/5) / 3 = 1,059
C45: **) Prognose des künftigen Index 2020
C46: = letzter (ungeglätteter) Index 2019 x prognost. Preissteigerungsrate 2020/2019
F47: = | G47: 168.8 x 1,059 = 178,7

Sheet Indizes 2023 Schätzung 2024 (hidden)
A1: Quelle: Oberer Gutachterausschuss für Grundstückswerte Rheinland-Pfalz gem. Landesgrundstückmarkbericht 2023
A2: =EingabeMaske!E1 -> WE-Rechner, Version 4 - LGMB 2023, Stand 11.2024
B8: Indizes jeweils zum 1.1. des Jahres, für Rechner des LfSt inkl. Schätzung 1.1.2024 | T8: Marktsegment | U8: Stichtag | W8: =DATE(U10,1,1) -> 2023-01-01 | X8: =DATE(V10,1,1) -> 2024-01-01 | Y8: Stichtag Richtwert
B9: Preisindex für Wohnungseigentume (Weiterverkäufe) | Q9: Schätzung | R9: Schätzung | T9: =EingabeMaske!D43 -> 0 | U9: =EingabeMaske!D15 -> 2023-07-04 | W9: Tage | X9: Tage | Y9: 2022-01-01
B10: Markt-segment | C10: 2010 | D10: 2011 | E10: 2012 | F10: 2013 | G10: 2014 | H10: 2015 | I10: 2016 | J10: 2017 | K10: 2018 | L10: 2019 | M10: 2020 | N10: 2021 | O10: 2022 | P10: 2023 | Q10: 2024 | R10: 2025 | U10: =YEAR(U9) -> 2023 | V10: =U10+1 -> 2024 | W10: =_xlfn.DAYS(U9,W8) -> 184 | X10: =_xlfn.DAYS(X8,W8) -> 365 | Y10: =YEAR(Y9) -> 2022
B11: 1 | C11: 100 | D11: 85.79365079 | E11: 88.86243386 | F11: 92.11640212 | G11: 98.25396825 | H11: 97.39417989 | I11: 101.9444444 | J11: 113.1613757 | K11: 118.2539683 | L11: 126.7989418 | M11: 138.4920635 | N11: 158.9417989 | O11: 186 | P11: 167 | Q11: 151 | R11: =Q11 -> 151 | T11: 1 | U11: =ROUND(HLOOKUP(U$10,$C$10:$R$17,2),1) -> 167 | V11: =ROUND(HLOOKUP(V$10,$C$10:$R$17,2),1) -> 151 | W11: =U11+(V11-U11)*$W$10/$X$10 -> 158.9342466 | Y11: =HLOOKUP($Y$10,$E$10:$Q$17,2) -> 186
B12: 2 | C12: 100 | D12: 99.24712135 | E12: 98.0513729 | F12: 99.24712135 | G12: 98.81532329 | H12: 102.4357839 | I12: 105.8237378 | J12: 111.6142604 | K12: 119.2648361 | L12: 127.5907883 | M12: 139.8804252 | N12: 157 | O12: 181 | P12: 195 | Q12: 176 | R12: =Q12 -> 176 | T12: 2 | U12: =ROUND(HLOOKUP(U$10,$C$10:$R$17,3),1) -> 195 | V12: =ROUND(HLOOKUP(V$10,$C$10:$R$17,3),1) -> 176 | W12: =U12+(V12-U12)*$W$10/$X$10 -> 185.4219178 | Y12: =HLOOKUP($Y$10,$E$10:$Q$17,3) -> 181
B13: 3 | C13: 100 | D13: 99.64147561 | E13: 105.7175205 | F13: 108.2083215 | G13: 112.010567 | H13: 114.9731107 | I13: 123.1248231 | J13: 131.4086235 | K13: 142.1266157 | L13: 150.6934616 | M13: 167.2704972 | N13: 188 | O13: 230 | P13: 234 | Q13: 211 | R13: 211 | T13: 3 | U13: =ROUND(HLOOKUP(U$10,$C$10:$R$17,4),1) -> 234 | V13: =ROUND(HLOOKUP(V$10,$C$10:$R$17,4),1) -> 211 | W13: 222.4054795 | Y13: =HLOOKUP($Y$10,$E$10:$Q$17,4) -> 230
B14: 4 | C14: 100 | D14: 102.3512123 | E14: 105.8137399 | F14: 110.9294636 | G14: 116.1094783 | H14: 123.5855988 | I14: 131.2637766 | J14: 143.9933872 | K14: 157.2189566 | L14: 174.4489346 | M14: 193.8280676 | N14: 223 | O14: 263 | P14: 257 | Q14: 231 | R14: 231 | T14: 4 | U14: =ROUND(HLOOKUP(U$10,$C$10:$R$17,5),1) -> 257 | V14: =ROUND(HLOOKUP(V$10,$C$10:$R$17,5),1) -> 231 | W14: =U14+(V14-U14)*$W$10/$X$10 -> 243.8931507 | Y14: =HLOOKUP($Y$10,$E$10:$Q$17,5) -> 263
B15: 5 | C15: 100 | D15: 103.4715026 | E15: 109.6447076 | F15: 115.9289415 | G15: 124.3079201 | H15: 132.0873427 | I15: 142.6868986 | J15: 153.8490007 | K15: 166.4988897 | L15: 183.5159141 | M15: 203.1088083 | N15: 227 | O15: 253 | P15: 250 | Q15: 225 | R15: 225 | T15: 5 | U15: =ROUND(HLOOKUP(U$10,$C$10:$R$17,6),1) -> 250 | V15: =ROUND(HLOOKUP(V$10,$C$10:$R$17,6),1) -> 225 | W15: 237.3972603 | Y15: =HLOOKUP($Y$10,$E$10:$Q$17,6) -> 253
B16: 6 | C16: 100 | D16: 103.1026253 | E16: 108.3465924 | F16: 117.8334659 | G16: 126.9888624 | H16: 138.3717847 | I16: 151.6308671 | J16: 167.7340228 | K16: 182.9819676 | L16: 199.8740387 | M16: 218.4036065 | N16: 245.3725802 | O16: 276 | P16: 267 | Q16: 240 | R16: 240 | T16: 6 | U16: =ROUND(HLOOKUP(U$10,$C$10:$R$17,7),1) -> 267 | V16: =ROUND(HLOOKUP(V$10,$C$10:$R$17,7),1) -> 240 | W16: 253.3890411 | Y16: =HLOOKUP($Y$10,$E$10:$Q$17,7) -> 276
B17: Ø RLP | C17: 100 | D17: 101.754386 | E17: 105.4704944 | F17: 110.3987241 | G17: 115.9968102 | H17: 122.3923445 | I17: 131.8181818 | J17: 143.6204147 | K17: 156.6427432 | L17: 171.9059011 | M17: 189.76874 | N17: 213 | O17: 240 | P17: 239 | Q17: 215 | R17: 215 | T17: Ø RLP | U17: =ROUND(HLOOKUP(U$10,$C$10:$R$17,8),1) -> 239 | V17: =ROUND(HLOOKUP(V$10,$C$10:$R$17,8),1) -> 215 | W17: 226.9013699 | Y17: =HLOOKUP($Y$10,$E$10:$Q$17,8) -> 240
T18: =T9 -> 0 | V18: = | W18: =ROUND(VLOOKUP(T9,T11:W17,4),1) ->  | Y18: =ROUND(VLOOKUP(T9,T11:Y17,6),1) -> 
B19: © Oberer Gutachterausschuss für Grundstückswerte Rheinland-Pfalz, Stand Juli 2023
B20: vgl. LGMB 2023, Abschnitt 4.6.1 und 4.6.2

Sheet Indizes 2024 Schätzung 2025 (hidden)
A1: Quelle: Oberer Gutachterausschuss für Grundstückswerte Rheinland-Pfalz gem. Landesgrundstückmarkbericht 2023
A2: =EingabeMaske!E1 -> WE-Rechner, Version 4 - LGMB 2023, Stand 11.2024
B8: Indizes jeweils zum 1.1. des Jahres, für Rechner des LfSt inkl. Schätzung 1.1.2025 | U8: Marktsegment | V8: Stichtag | X8: =DATE(V10,1,1) -> 2023-01-01 | Y8: =DATE(W10,1,1) -> 2024-01-01 | Z8: Stichtag Richtwert
B9: Preisindex für Wohnungseigentume (Weiterverkäufe) | O9: Stichtag Richtwert | R9: Schätzung OGA | S9: LfST | U9: =EingabeMaske!D43 -> 0 | V9: =EingabeMaske!D15 -> 2023-07-04 | X9: Tage | Y9: Tage | Z9: 2022-01-01
B10: Markt-segment | C10: 2010 | D10: 2011 | E10: 2012 | F10: 2013 | G10: 2014 | H10: 2015 | I10: 2016 | J10: 2017 | K10: 2018 | L10: 2019 | M10: 2020 | N10: 2021 | O10: 2022 | P10: 2023 | Q10: 2024 | R10: 2025 | S10: 2026 | V10: =YEAR(V9) -> 2023 | W10: =V10+1 -> 2024 | X10: =_xlfn.DAYS(V9,X8) -> 184 | Y10: =_xlfn.DAYS(Y8,X8) -> 365 | Z10: =YEAR(Z9) -> 2022
B11: 1 | C11: 100 | D11: 85.79365079 | E11: 88.86243386 | F11: 92.11640212 | G11: 98.25396825 | H11: 97.39417989 | I11: 101.9444444 | J11: 113.1613757 | K11: 118.2539683 | L11: 126.7989418 | M11: 138.4920635 | N11: 158.9417989 | O11: 186 | P11: 167 | Q11: 186 | R11: =Q11 -> 186 | S11: =R11 -> 186 | U11: 1 | V11: =ROUND(HLOOKUP(V$10,$C$10:$S$17,2),1) -> 167 | W11: =ROUND(HLOOKUP(W$10,$C$10:$S$17,2),1) -> 186 | X11: =V11+(W11-V11)*$X$10/$Y$10 -> 176.5780822 | Z11: =HLOOKUP($Z$10,$E$10:$Q$17,2) -> 186
B12: 2 | C12: 100 | D12: 99.24712135 | E12: 98.0513729 | F12: 99.24712135 | G12: 98.81532329 | H12: 102.4357839 | I12: 105.8237378 | J12: 111.6142604 | K12: 119.2648361 | L12: 127.5907883 | M12: 139.8804252 | N12: 157 | O12: 181 | P12: 194 | Q12: 192 | R12: =Q12 -> 192 | S12: 192 | U12: 2 | V12: =ROUND(HLOOKUP(V$10,$C$10:$S$17,3),1) -> 194 | W12: =ROUND(HLOOKUP(W$10,$C$10:$S$17,3),1) -> 192 | X12: =V12+(W12-V12)*$X$10/$Y$10 -> 192.9917808 | Z12: =HLOOKUP($Z$10,$E$10:$Q$17,3) -> 181
B13: 3 | C13: 100 | D13: 99.64147561 | E13: 105.7175205 | F13: 108.2083215 | G13: 112.010567 | H13: 114.9731107 | I13: 123.1248231 | J13: 131.4086235 | K13: 142.1266157 | L13: 150.6934616 | M13: 167.2704972 | N13: 188 | O13: 230 | P13: 233 | Q13: 230 | R13: 230 | S13: 230 | U13: 3 | V13: =ROUND(HLOOKUP(V$10,$C$10:$S$17,4),1) -> 233 | W13: =ROUND(HLOOKUP(W$10,$C$10:$S$17,4),1) -> 230 | X13: 231.4876712 | Z13: =HLOOKUP($Z$10,$E$10:$Q$17,4) -> 230
B14: 4 | C14: 100 | D14: 102.3512123 | E14: 105.8137399 | F14: 110.9294636 | G14: 116.1094783 | H14: 123.5855988 | I14: 131.2637766 | J14: 143.9933872 | K14: 157.2189566 | L14: 174.4489346 | M14: 193.8280676 | N14: 223 | O14: 263 | P14: 256 | Q14: 231 | R14: 231 | S14: 231 | U14: 4 | V14: =ROUND(HLOOKUP(V$10,$C$10:$S$17,5),1) -> 256 | W14: =ROUND(HLOOKUP(W$10,$C$10:$S$17,5),1) -> 231 | X14: =V14+(W14-V14)*$X$10/$Y$10 -> 243.3972603 | Z14: =HLOOKUP($Z$10,$E$10:$Q$17,5) -> 263
B15: 5 | C15: 100 | D15: 103.4715026 | E15: 109.6447076 | F15: 115.9289415 | G15: 124.3079201 | H15: 132.0873427 | I15: 142.6868986 | J15: 153.8490007 | K15: 166.4988897 | L15: 183.5159141 | M15: 203.1088083 | N15: 227 | O15: 253 | P15: 248 | Q15: 227 | R15: 227 | S15: 227 | U15: 5 | V15: =ROUND(HLOOKUP(V$10,$C$10:$S$17,6),1) -> 248 | W15: =ROUND(HLOOKUP(W$10,$C$10:$S$17,6),1) -> 227 | X15: 237.4136986 | Z15: =HLOOKUP($Z$10,$E$10:$Q$17,6) -> 253
B16: 6 | C16: 100 | D16: 103.1026253 | E16: 108.3465924 | F16: 117.8334659 | G16: 126.9888624 | H16: 138.3717847 | I16: 151.6308671 | J16: 167.7340228 | K16: 182.9819676 | L16: 199.8740387 | M16: 218.4036065 | N16: 245.3725802 | O16: 276 | P16: 263 | Q16: 248 | R16: 248 | S16: 248 | U16: 6 | V16: =ROUND(HLOOKUP(V$10,$C$10:$S$17,7),1) -> 263 | W16: =ROUND(HLOOKUP(W$10,$C$10:$S$17,7),1) -> 248 | X16: 255.4383562 | Z16: =HLOOKUP($Z$10,$E$10:$Q$17,7) -> 276
B17: Ø RLP | C17: 100 | D17: 101.754386 | E17: 105.4704944 | F17: 110.3987241 | G17: 115.9968102 | H17: 122.3923445 | I17: 131.8181818 | J17: 143.6204147 | K17: 156.6427432 | L17: 171.9059011 | M17: 189.76874 | N17: 213 | O17: 240 | P17: 237 | Q17: 214 | R17: 214 | S17: 214 | U17: Ø RLP | V17: =ROUND(HLOOKUP(V$10,$C$10:$S$17,8),1) -> 237 | W17: =ROUND(HLOOKUP(W$10,$C$10:$S$17,8),1) -> 214 | X17: 225.4054795 | Z17: =HLOOKUP($Z$10,$E$10:$Q$17,8) -> 240
U18: =U9 -> 0 | W18: = | X18: =ROUND(VLOOKUP(U9,U11:X17,4),1) ->  | Z18: =ROUND(VLOOKUP(U9,U11:Z17,6),1) -> 
B19: © Oberer Gutachterausschuss für Grundstückswerte Rheinland-Pfalz, Stand Juli 2024
B20: vgl. LGMB 2023, Abschnitt 4.6.1 und 4.6.2

Sheet RND nach ImmoWertV (hidden)
A2: Restnutzungsdauer bei Modernisierung nach ImmoWertV
J3: a | K3: 1.25 | L3: 1.25 | M3: 1.0767 | N3: 0.9033 | O3: 0.73 | P3: 0.6725 | Q3: 0.615 | R3: 0.5575 | S3: 0.5 | T3: 0.466 | U3: 0.432 | V3: 0.398 | W3: 0.364 | X3: 0.33 | Y3: 0.304 | Z3: 0.278 | AA3: 0.252 | AB3: 0.226 | AC3: 0.2 | AD3: 0.2 | AE3: 0.2
J4: b | K4: 2.625 | L4: 2.625 | M4: 2.2757 | N4: 1.9263 | O4: 1.577 | P4: 1.4578 | Q4: 1.3385 | R4: 1.2193 | S4: 1.1 | T4: 1.027 | U4: 0.954 | V4: 0.881 | W4: 0.808 | X4: 0.735 | Y4: 0.676 | Z4: 0.617 | AA4: 0.558 | AB4: 0.499 | AC4: 0.44 | AD4: 0.44 | AE4: 0.44
J5: c | K5: 1.525 | L5: 1.525 | M5: 1.3878 | N5: 1.2505 | O5: 1.1133 | P5: 1.085 | Q5: 1.0567 | R5: 1.0283 | S5: 1 | T5: 0.9906 | U5: 0.9811 | V5: 0.9717 | W5: 0.9622 | X5: 0.9528 | Y5: 0.9506 | Z5: 0.9485 | AA5: 0.9463 | AB5: 0.9442 | AC5: 0.942 | AD5: 0.942 | AE5: 0.942
J6: ab rel. Alter | K6: 60 | L6: 60 | M6: 55 | N6: 55 | O6: 40 | P6: 35 | Q6: 30 | R6: 25 | S6: 20 | T6: 19 | U6: 18 | V6: 17 | W6: 16 | X6: 15 | Y6: 14 | Z6: 13 | AA6: 12 | AB6: 11 | AC6: 10 | AD6: 10 | AE6: 10
B8: Ergebnis | H8: Vorgaben
B9: RND | C9: Pkte | D9: abger. Pkte | E9: RND | F9: aufger. Pkte | G9: RND | H9: GND | I9: Alter | J9: rel. Alter [%] | K9: 0 | L9: =K9+1 -> 1 | M9: =L9+1 -> 2 | N9: 3 | O9: 4 | P9: 5 | Q9: 6 | R9: 7 | S9: 8 | T9: 9 | U9: 10 | V9: 11 | W9: 12 | X9: 13 | Y9: 14 | Z9: 15 | AA9: 16 | AB9: 17 | AC9: 18 | AD9: 19 | AE9: 20
A10: 1 | B10: =ROUND(E10+(C10-D10)*(G10-E10),0) -> 19 | C10: =RND!I12 -> 0 | D10: =ROUNDDOWN(C10,0) -> 0 | E10: =IF($J10=0,0,HLOOKUP(D10,$K$9:$AE$10,$A10+1,0)) -> 18.64 | F10: =ROUNDUP(C10,0) -> 0 | G10: =IF($J10=0,0,HLOOKUP(F10,$K$9:$AE$10,$A10+1,0)) -> 18.64 | H10: =RND!F30 -> 80 | I10: =RND!F28 -> 63 | J10: =IF(H10=0,0,I10/H10*100) -> 78.75 | K10: =ROUND(IF(($J10>=K$6)*($H10>=$I10),K$3*$I10^2/$H10-K$4*$I10+K$5*$H10,IF(($J10>=K$6)*($H10<$I10),K$3*$H10^2/$H10-K$4*$H10+K$5*$H10,$H10-$I10)),2) -> 18.64 | L10: =ROUND(IF(($J10>=L$6)*($H10>=$I10),L$3*$I10^2/$H10-L$4*$I10+L$5*$H10,IF(($J10>=L$6)*($H10<$I10),L$3*$H10^2/$H10-L$4*$H10+L$5*$H10,$H10-$I10)),2) -> 18.64 | M10: 21.07 | N10: 23.5 | O10: 25.93 | P10: 28.32 | Q10: 30.72 | R10: 33.11 | S10: 35.51 | T10: 37.67 | U10: 39.82 | V10: 41.98 | W10: 44.13 | X10: 46.29 | Y10: 48.54 | Z10: 50.8 | AA10: 53.05 | AB10: 55.31 | AC10: 57.56 | AD10: 57.56 | AE10: 57.56
B12: Mindestrestnutzungsdauer:
B13: =30%*H10 -> 24
B14: maßgeblich:
B15: =IF(B13>B10,B13,B10) -> 24 | C15: Jahre

Sheet Werte Neu (hidden)
A1: Garage | B1: 7000
A2: Doppelgarage | B2: 12000
A3: Carport | B3: 4000
A4: Carport und Garage | B4: 11000
A5: Aussenstellplatz | B5: 3500
A6: Sonstiges (freie Eingabe) | B6: 0
